Workbook

Sheet BEP
A2: Таблица значений
A3: Отклонение от точки безубыточности (∆Q), % | B3: Объем продаж (Q), шт. | C3: Переменные затраты (VC), руб. | D3: Постоянные затраты (FC), руб. | E3: Общие затраты (TC), руб. | F3: Выручка (S), руб. | G3: Прибыль (Pr), руб. | H3: Рентабельность продаж (ROS), %
A4: - | B4: = Qbep * (1+∆Q) | C4: = C * Q | D4: = FC | E4: = FC + C * Q | F4: = P * Q | G4: = S - TC | H4: = Pr / S
A5: =A6-($A$13-$A$9)/(ROW($A$13)-ROW($A$9)) -> -0.29 | B5: =$B$9*(1+A5) -> 282.8712821 | C5: =B5*$B$20 -> 7920.395897 | D5: =$B$23 -> 15538 | E5: =D5+C5 -> 23458.3959 | F5: =B5*$B$17 -> 18952.3759 | G5: =F5-E5 -> -4506.02 | H5: =IFERROR(G5/F5,) -> -0.2377548875
A6: =A7-($A$13-$A$9)/(ROW($A$13)-ROW($A$9)) -> -0.2175 | B6: =$B$9*(1+A6) -> 311.7560256 | C6: 8729.168718 | D6: 15538 | E6: =D6+C6 -> 24267.16872 | F6: 20887.65372 | G6: =F6-E6 -> -3379.515 | H6: =IFERROR(G6/F6,) -> -0.1617948596
A7: =A8-($A$13-$A$9)/(ROW($A$13)-ROW($A$9)) -> -0.145 | B7: =$B$9*(1+A7) -> 340.6407692 | C7: 9537.941538 | D7: 15538 | E7: 25075.94154 | F7: 22822.93154 | G7: -2253.01 | H7: -0.09871694161
A8: =A9-($A$13-$A$9)/(ROW($A$13)-ROW($A$9)) -> -0.0725 | B8: =$B$9*(1+A8) -> 369.5255128 | C8: 10346.71436 | D8: 15538 | E8: =D8+C8 -> 25884.71436 | F8: 24758.20936 | G8: =F8-E8 -> -1126.505 | H8: =IFERROR(G8/F8,) -> -0.0455002615
A9: 0 | B9: =B23/(B17-B20) -> 398.4102564 | C9: 11155.48718 | D9: 15538 | E9: 26693.48718 | F9: 26693.48718 | G9: 0 | H9: 0
A10: =A9+($A$13-$A$9)/(ROW($A$13)-ROW($A$9)) -> 0.0725 | B10: =$B$9*(1+A10) -> 427.295 | C10: 11964.26 | D10: 15538 | E10: 27502.26 | F10: 28628.765 | G10: 1126.505 | H10: 0.03934871099
A11: =A10+($A$13-$A$9)/(ROW($A$13)-ROW($A$9)) -> 0.145 | B11: =$B$9*(1+A11) -> 456.1797436 | C11: 12773.03282 | D11: 15538 | E11: =D11+C11 -> 28311.03282 | F11: 30564.04282 | G11: =F11-E11 -> 2253.01 | H11: =IFERROR(G11/F11,) -> 0.07371439745
A12: 0.2175 | B12: 485.0644872 | C12: 13581.80564 | D12: 15538 | E12: 29119.80564 | F12: 32499.32064 | G12: 3379.515 | H12: 0.1039872506
A13: =B26/100 -> 0.29 | B13: =$B$9*(1+A13) -> 513.9492308 | C13: 14390.57846 | D13: 15538 | E13: 29928.57846 | F13: 34434.59846 | G13: 4506.02 | H13: 0.1308573412
B16: Цена реализации (P), руб/шт
B17: 67 | C17: 50 | H17: 70
B19: Себестоимость (С), руб/шт
B20: 28 | C20: 25 | H20: 45
B22: Постоянные затраты (FC), руб.
B23: 15538 | C23: 14000 | H23: 18000
B25: Отклонение (∆Q), %
B26: 29 | C26: 0 | H26: 200
B28: Минимум | C28: =ROUNDDOWN(MIN(E5:F13)/1000,0)*1000 -> 18000
B29: Максимум | C29: =ROUNDUP(MAX(E5:F13)/1000,0)*1000 -> 35000
B30: Деление | C30: =MAX((C29-C28)/10,1) -> 1700
